[Event "Turkish Youth Championships 2023"]
[Site "Samsun"]
[Date "2023.05.20"]
[Round "3.7"]
[White "Zengin, Ovgu"]
[Black "Temizer, Umut"]
[Result "0-1"]
[WhiteElo "1528"]
[BlackElo "1973"]
[Annotator "TA"]
[PlyCount "84"]
[EventDate "2023.05.19"]
[EventType "swiss"]
[EventCountry "TUR"]
[TimeControl "5400+30"]

{[%evp 12,84,11,6,20,17,33,17,20,8,41,14,67,60,77,41,59,7,7,7,16,13,15,-10,7,-16,9,-22,-12,-73,-80,-81,-48,-66,-77,-74,-40,-132,-35,-110,-116,-170,-149,-160,-148,-154,-129,-214,-238,-252,-224,-213,-233,-615,-408,-362,-212,-456,-450,-1415,-1411,-1393,-1377,-1353,-1344,-1333,-1299,-2353,-1939,-6548,-6340,-5229,-4010,-5793,-5549]} 1. e4 c5 2. Nf3 d6 3. Bb5+ Nd7 4. c3 Ngf6 5. Qe2 a6 6. Ba4 b5 7. Bc2 Bb7 {B51: Sicilian: Moscow Variation (3 Bb5+) without 3...Bd7.} 8. O-O Qc7 9. d4 e6 {The position is equal.} 10. Bf4 {[#]} Rc8 $146 ({Predecessor:} 10... Be7 11. a4 O-O 12. Na3 bxa4 13. Nc4 Rac8 14. Bxd6 Bxd6 15. e5 Be7 16. exf6 Bxf6 {1-0 Nagy,I (2144)-Szekacs,M (1775) HUN-chT2 Asztalos 1011 2010 (9.9)}) 11. d5 e5 (11... exd5 $11 12. exd5+ Be7) 12. Bg3 g6 {[%emt 0:20:30]} 13. Nfd2 {[%emt 0:21:00]} (13. a4 $5 {[%cal Ra4b5]}) 13... Bg7 {[%emt 0:00:30]} 14. c4 {[%emt 0:05:30]} (14. a4 $14) 14... b4 $11 {[%emt 0:03:30]} 15. Re1 {[%emt 0:03:30]} O-O {[%emt 0:01:30]} 16. Nf1 {[%emt 0:01:30]} Nh5 {[%emt 0:03:30]} 17. Nbd2 {[%emt 0:01:30]} a5 {[%emt 0:04:30]} 18. Ne3 {[%emt 0:01:30]} Nb6 {[%emt 0:01:30]} 19. b3 {[%emt 0:00:30]} Ra8 {[%emt 0:04:30]} 20. Nf5 {[%emt 0:04:30]} Nxg3 $17 {[%emt 0:03:30]} 21. Nxg3 {[%emt 0:00:00]} Bc8 {[%emt 0:00:30]} 22. h4 {[%emt 0:02:00]} Qe7 {[%emt 0:03:30]} 23. h5 {[%emt 0:05:30]} Ra7 {[%emt 0:03:30]} 24. Ndf1 {[%emt 0:11:30] [#] Black keeps a firm grip on the game.} (24. a3 $15) 24... Bd7 {[%emt 0:03:30]} ({Black should try} 24... f5 $1 $17 {[%cal Rf5f4]} 25. hxg6 hxg6 26. exf5 gxf5) 25. Ne3 {[%emt 0:01:30] [#]} (25. a3 $15) 25... a4 $1 {[%emt 0:02:30]} 26. f3 {[%emt 0:04:30]} (26. Rab1 $17) 26... Rfa8 {[%emt 0:01:30]} 27. Rac1 {[%emt 0:02:30]} axb3 {[%emt 0:01:30]} 28. axb3 {[%emt 0:00:30]} Ra2 {[%emt 0:00:30] Black is more active.} 29. Kf2 {[%emt 0:01:30] White is weak on the dark squares} (29. hxg6 $17 hxg6 30. Qf2) 29... Bh6 $19 {[%emt 0:04:30]} 30. Rh1 {[%emt 0:02:30]} Qg5 {[%emt 0:01:30] ...Qxe3+ is the strong threat.} ({Weaker is} 30... Bf4 31. Ngf1 $17) 31. hxg6 {[%emt 0:01:30]} hxg6 {[%emt 0:00:30] White must now prevent ...Qxe3+.} ({And not} 31... fxg6 32. Ngf1) 32. Rh2 $2 {[%emt 0:06:30]} (32. Ngf1) 32... R8a3 {[%emt 0:02:30]} 33. Ngf1 {[%emt 0:03:30]} Rb2 {[%emt 0:13:30]} (33... Na4 $142 {And now ...Nc3 would win.} 34. bxa4 Bxa4) 34. Nd2 $2 {[%emt 0:02:30]} (34. g3 {keeps fighting.}) 34... Raa2 {[%emt 0:01:30] Black is clearly winning.} 35. Rch1 {[%emt 0:04:22]} (35. g4 $142) 35... Qxe3+ {[%emt 0:01:30][%mdl 64] Remove Defender} 36. Qxe3 {[%emt 0:00:14]} Bxe3+ {[%emt 0:00:30]} 37. Kxe3 {[%emt 0:00:06]} Rxc2 {[%emt 0:00:30]} 38. g4 {[%emt 0:01:11]} Kf8 {[%emt 0:01:30] ...Rc3+ would be deadly.} 39. g5 {[%emt 0:00:54]} Ke7 {[%emt 0:00:00] ( -> ...Rc3+)} 40. Rd1 {[%emt 0:01:04]} Rc3+ {[%emt 0:00:00]} 41. Kf2 {[%emt 0:00:20]} Rxb3 {[%emt 0:01:30]} 42. Kg3 {[%emt 0:00:17]} Rbb2 {[%emt 0:00:00] Weighted Error Value: White=1.17/Black=0.52} 0-1

[Event "Turkish Youth Championships 2023"]
[Site "Samsun"]
[Date "2023.05.20"]
[Round "3.8"]
[White "Demirbas, Emre"]
[Black "Koyuncu, Omer Arda"]
[Result "0-1"]
[WhiteElo "2013"]
[BlackElo "1694"]
[Annotator "TA"]
[PlyCount "64"]
[EventDate "2023.05.19"]
[EventType "swiss"]
[EventCountry "TUR"]
[TimeControl "5400+30"]

{[%evp 9,64,-11,1,-46,-32,-54,72,-174,-121,-117,0,-16,-28,-35,0,0,55,-123,-145,-164,-28,-35,-43,-39,0,0,26,0,93,97,100,119,89,0,0,0,0,-246,-235,-471,-465,-558,-477,-459,-462,-600,-557,-733,-585,-853,-810,-2037,-2026,-2018,-1926,-29997,-29995]} 1. Nf3 d5 {[%cal Bd7d5,Bd5d4][%mdl 32]} 2. c4 d4 3. b4 f6 4. e3 e5 5. a3 c5 6. bxc5 {A09: Réti Opening: 1 Nf3 d5 2 c4.} (6. Nxe5 $2 fxe5 7. Qh5+ Ke7 8. Qxe5+ (8. bxc5 $2 Nc6 $19) 8... Kf7 9. Qh5+ g6 10. Qd5+ Qxd5 11. cxd5 Nf6 $19) (6. d3 $11) 6... Nc6 7. exd4 {[#]} e4 $146 {[#]} (7... Nxd4 $15 {stays ahead.} 8. Bb2 Bxc5) ({Predecessor:} 7... Nxd4 8. Nxd4 Qxd4 9. Ra2 Bxc5 10. d3 Ne7 11. Be3 Qd6 12. Bxc5 Qxc5 13. Be2 O-O {0-1 Sanner,M-Noradounguian,G FRA-ch38 Paris 1963 (7)}) 8. Nh4 $2 (8. d5 $1 $16 {[%cal Rd5c6] is forced if you want to stay better.} exf3 9. d4) 8... Qxd4 $19 {[%emt 0:14:30]} 9. Nc3 {[%emt 0:29:00]} e3 {[%emt 0:06:30] Black is more active.} (9... Qxc5 10. Bb2 $14) (9... Bxc5 $17 {[%csl Gc5][%cal Rd4f2]} 10. Qe2 f5) 10. fxe3 {[%emt 0:01:30]} (10. dxe3 $2 Qxc3+ 11. Bd2 Qe5 $19) (10. Qh5+ $2 g6 11. Qe2 Qxh4 $19) 10... Qxh4+ {[%emt 0:01:30]} 11. g3 {[%emt 0:00:00]} Qg5 {[%emt 0:02:30]} 12. d4 {[%emt 0:01:00]} Bg4 {[%emt 0:24:30]} ({Black should play} 12... h5 $11) 13. Qa4 $2 {[%emt 0:02:30] [#]} (13. Qb3 $1 $14) 13... Bf3 $1 $17 {[%emt 0:05:30]} 14. Rg1 {[%emt 0:00:00][%cal Bh1g1,Bg1g2,Bg2b2,Bb2b7][%mdl 32]} Kf7 {[%emt 0:00:30]} (14... Bxc5 $19 {Strongly threatening ...Bb6.} 15. Rb1 (15. dxc5 Qh5 $17) 15... Nge7) 15. Bg2 {[%emt 0:07:00]} Bxg2 {[%emt 0:12:30]} 16. Rxg2 {[%emt 0:00:30]} Nh6 {[%emt 0:00:30]} 17. Rb1 {[%emt 0:03:30]} Rb8 {[%emt 0:02:30]} 18. Rgb2 {[%emt 0:00:30]} Be7 {[%emt 0:03:30]} (18... Rc8 $11 {keeps the balance.}) 19. Rxb7 $16 {[%emt 0:04:30]} Rxb7 {[%emt 0:01:30]} 20. Rxb7 {[%emt 0:00:30]} Nxd4 {[%emt 0:04:30]} 21. Ne4 {[%emt 0:05:30]} ({White should try} 21. Rxe7+ $16 Kxe7 22. Qxa7+ Kf8 23. Qb8+ (23. exd4 $2 Qxc1+ 24. Nd1 g6 $19) 23... Kf7 24. Qxh8 Nf3+ 25. Kd1 Qxc5 26. Qd8) 21... Qe5 {[%emt 0:00:55]} 22. Nd6+ {[%emt 0:01:30]} Kg6 {[%emt 0:00:10]} 23. Qd1 $2 {[%emt 0:04:30]} (23. Qd7 $11 {and White has nothing to worry.} Bf8 24. Nf7 (24. Rxa7 $2 {is the wrong capture.} Nb3 $19) 24... Nxf7 25. Qxf7+ Kg5 26. c6 Qa5+ 27. Kd1 Qa4+ 28. Ke1 Nf3+ 29. Kf2 Qc2+ 30. Kxf3 Qd1+ 31. Kg2 Qe2+ 32. Kg1 Qd1+ 33. Kf2 Qc2+ 34. Kf3 Qd1+ 35. Kg2 Qe2+ 36. Kg1 Qd1+ 37. Kf2 Qc2+ 38. Kf3) 23... Bxd6 {[%emt 0:02:40]} ({Worse is} 23... Qxc5 24. exd4 Qxd6 25. c5 Qe6+ 26. Qe2 Qxe2+ 27. Kxe2 $17) 24. cxd6 {[%emt 0:01:30]} (24. Qxd4 Bxc5 25. Qxe5 fxe5 26. Rc7) 24... Qe4 $19 {[%emt 0:00:22] Threatens to win with ...Nf3+.} 25. Re7 {[%emt 0:02:30]} Nf3+ {[%emt 0:01:11][%mdl 64] Discovered Attack, Double Attack} 26. Ke2 {[%emt 0:00:30]} Qxc4+ {[%emt 0:00:46]} ({Don't go for} 26... Ne5 $2 27. Qd5 Qg4+ 28. Ke1 $19) 27. Kf2 {[%emt 0:01:30]} Ne5 {[%emt 0:01:55]} 28. Kg1 {[%emt 0:01:30]} Qe4 {[%emt 0:00:58] Hoping for ...Nf5.} 29. a4 {[%emt 0:01:30]} Nf5 {[%emt 0:01:20][%csl LRe3,LRe7]} 30. Rxa7 {[%emt 0:00:30]} Nxe3 {[%emt 0:00:16][%csl Ge3][%cal Re4g2]} 31. Qe2 {[%emt 0:00:30] Wards off Qg2+} Nf3+ {[%emt 0:00:47]} 32. Kh1 {[%emt 0:00:00]} Nd4+ {[%emt 0:00:00] Artfully played by Koyuncu.   Weighted Error Value: White=1.41/Black=0.41} 0-1

[Event "Turkish Youth Championships 2023"]
[Site "Samsun"]
[Date "2023.05.21"]
[Round "3.8"]
[White "Kaynak, Deniz Can"]
[Black "Engin, Onur Cinar"]
[Result "0-1"]
[ECO "A11"]
[WhiteElo "1651"]
[BlackElo "1922"]
[Annotator "TA"]
[PlyCount "119"]
[EventDate "2023.05.19"]
[EventType "swiss"]
[EventCountry "TUR"]
[SourceTitle "playchess.com"]
[Source "ChessBase"]
[SourceQuality "1"]
[TimeControl "5400+30"]

{[%evp 14,119,35,35,33,32,36,27,27,26,21,26,27,26,41,50,46,45,58,57,108,97,138,115,132,131,147,-139,-144,-148,-101,-89,-97,-97,0,0,0,0,0,0,0,-84,-95,-91,-114,-110,0,0,0,0,0,0,-8,-8,-7,-45,-53,-123,-75,-99,0,0,0,0,0,0,0,0,0,0,0,-8,0,0,0,0,0,0,0,0,0,-8,-8,-8,-788,-5851,-5106,-918,-8,-29981,-29982,-29981,-29983,-29987,-29988,-29989,-29990,-29990,-29991,-29992,-29993,-29996,-29997,-29997,-29995,-29995,-29996,-29996]} 1. c4 {[%emt 0:01:00]} c6 {[%emt 0:01:00]} 2. g3 {[%emt 0:00:30]} d5 {[%emt 0:00:30]} 3. Nf3 {[%emt 0:00:30]} Nf6 {[%emt 0:00:30]} 4. Bg2 {[%emt 0:00:30]} g6 {[%emt 0:00:30]} 5. b3 {[%emt 0:00:30]} Bg7 {[%emt 0:00:30]} 6. Bb2 {[%emt 0:00:30]} Qb6 {[%emt 0:00:30]} 7. Qc2 {[%emt 0:00:30]} O-O {[%emt 0:00:30]} 8. O-O {[%emt 0:00:30]} Bg4 {[%emt 0:00:30] A11: English Opening: 1...c6.} 9. d3 {[%emt 0:00:00]} Nbd7 {[%emt 0:00:00]} 10. Nbd2 {[%emt 0:00:00]} Rfe8 {[%emt 0:00:00] White has an edge.} 11. h3 {[%emt 0:13:30]} Bxf3 {[%emt 0:00:30]} 12. Nxf3 {[%emt 0:01:30]} e5 {[%emt 0:03:30]} 13. e3 {[%emt 0:04:30]} Rad8 {[%emt 0:11:30] [#]} 14. Rac1 $146 {[%emt 0:08:30]} ({Predecessor:} 14. Rad1 h6 15. d4 e4 16. Nd2 Rc8 17. Nb1 h5 18. h4 {½-½ Benci,J (1520)-Rosol,P (1885) Bratislava Slovakia op rapid 2022 (5)}) 14... Qa5 {[%emt 0:11:30]} 15. Nd2 {[%emt 0:18:30]} Bh6 {[%emt 0:17:30]} (15... Qxa2 $2 16. Ra1 $18) 16. a3 {[%emt 0:16:30]} d4 {[%emt 0:10:30]} 17. b4 $16 {[%emt 0:00:30]} Qc7 {[%emt 0:01:30]} 18. exd4 {[%emt 0:06:30]} exd4 {[%emt 0:00:30]} 19. Bxd4 {[%emt 0:03:30]} Re2 {[%emt 0:01:30]} 20. f4 $2 {[%emt 0:05:25][%mdl 8192]} (20. Bc3 $1 $16 {is forced if you want to stay better.}) 20... Nh5 $36 {[%emt 0:00:30][%mdl 2048] Black has strong initiative.} 21. Bf2 {[%emt 0:00:30] [#]} Nxf4 $1 {[%emt 0:04:30][%mdl 512]} 22. gxf4 {[%emt 0:07:35]} Qxf4 {[%emt 0:01:30]} 23. Bxa7 {[%emt 0:06:18]} Qg3 {[%emt 0:16:23]} (23... Qxd2 $17 24. Qxd2 Bxd2) 24. Rf2 $11 {[%emt 0:02:31]} Be3 {[%emt 0:00:07] Dancing on a razor blade.} 25. Bxe3 {[%emt 0:00:28]} Qxe3 {[%emt 0:00:04]} 26. Rcf1 {[%emt 0:00:56]} Ne5 $1 {[%emt 0:00:58]} 27. Qd1 {[%emt 0:01:21]} (27. c5 $11) 27... Rxf2 $17 {[%emt 0:00:16] Black has more active pieces.} 28. Rxf2 {[%emt 0:00:00]} Nxd3 {[%emt 0:01:23][%mdl 64] Pin} 29. Ne4 {[%emt 0:00:14]} f5 {[%emt 0:05:05]} ({Better is} 29... Qd4 $17 30. Qe2 (30. Nf6+ $2 Kg7 $19) 30... Nxf2 31. Nxf2 Ra8) 30. Qd2 $11 {[%emt 0:00:15]} Qd4 {[%emt 0:01:36][%mdl 64] Pin} 31. Nc5 {[%emt 0:00:45]} Nxf2 {[%emt 0:01:08]} 32. Qxd4 {[%emt 0:00:30]} Nxh3+ {[%emt 0:00:30]} 33. Bxh3 {[%emt 0:00:52]} Rxd4 {[%emt 0:00:18]} 34. Nxb7 {[%emt 0:00:05]} Rxc4 {[%emt 0:00:00] Strongly threatening ...Rc3.} 35. Bg2 {[%emt 0:00:16]} (35. Bf1 $1 $15 Rc1 36. Nc5) 35... Rc1+ {[%emt 0:02:31]} (35... Rc3 $142 36. a4 Rc4) 36. Kh2 {[%emt 0:00:53]} Ra1 {[%emt 0:00:03]} (36... Rc3 $17 37. a4 Rc4) 37. Bxc6 {[%emt 0:00:00]} Ra2+ {[%emt 0:00:19]} 38. Kg1 {[%emt 0:00:48]} Rxa3 {[%emt 0:00:05]} 39. b5 {[%emt 0:00:00]} Kf8 {[%emt 0:03:24] ...Ke7 would be deadly.} 40. Nc5 {[%emt 0:00:40]} Rc3 {[%emt 0:02:35]} 41. Nd7+ {[%emt 0:01:24]} Ke7 {[%emt 0:00:23] ...g5 is the strong threat.} 42. b6 $1 {[%emt 0:00:45] aiming for b7.} Rxc6 {[%emt 0:00:36][%mdl 4096] Endgame KR-KN} (42... Rb3 {simplifies} 43. b7 Rxb7 44. Bxb7 Kxd7 45. Kg2 Ke6) 43. b7 {[%emt 0:00:30]} Rc1+ {[%emt 0:00:00]} (43... Kxd7 $2 44. b8=Q $18 (44. b8=B $2 {is the wrong capture.} g5 $19)) 44. Kg2 {[%emt 0:00:11]} Rb1 {[%emt 0:00:17] Repels Nb6} (44... Kxd7 $2 45. b8=Q $18 (45. b8=B $2 {perishes.} g5 $19)) 45. b8=Q {[%emt 0:00:00]} Rxb8 {[%emt 0:00:12]} 46. Nxb8 {[%emt 0:00:00] KN-K3P} Kd6 {[%emt 0:01:23] White must now prevent ...g5.} 47. Na6 {[%emt 0:00:00]} g5 {[%emt 0:00:32][%cal Bg6g5,Bg5g4,Bg4g3,Bg3g2][%mdl 32] Hoping for ...Ke5.} 48. Nb4 {[%emt 0:00:00]} Ke5 $2 {[%emt 0:00:59][%mdl 8192]} (48... Ke6 $11 49. Kf3 h5) 49. Kf3 {[%emt 0:00:48] [#]} g4+ $1 {[%emt 0:01:47]} 50. Kg3 {[%emt 0:00:21] [#]} Ke4 $1 {[%emt 0:00:20] ( -> ...h5)} 51. Nc2 $2 {[%emt 0:01:21][%mdl 8192]} (51. Na6 $11 h6 52. Nc5+ Ke3 53. Na4) 51... h5 {[%emt 0:00:10][%cal Bh7h5,Bh5h4,Bh4h3][%mdl 32] Black mates.} 52. Ne1 {[%emt 0:01:44]} f4+ {[%emt 0:00:14]} 53. Kf2 {[%emt 0:01:02]} h4 {[%emt 0:01:31]} 54. Ng2 {[%emt 0:00:29]} g3+ {[%emt 0:00:43]} 55. Kg1 {[%emt 0:00:31]} h3 {[%emt 0:00:13]} 56. Ne1 {[%emt 0:00:29]} f3 {[%emt 0:00:19]} 57. Nd3 {[%emt 0:00:31]} Kxd3 {[%emt 0:00:49]} 58. Kh1 {[%emt 0:00:07]} g2+ {[%emt 0:00:00]} 59. Kg1 {[%emt 0:00:28]} Ke2 {[%emt 0:00:03]} 60. Kh2 {[%emt 0:00:00] A cool game by Engin.   Weighted Error Value: White=0.36/Black=0.14 (very precise)} 0-1

[Event "Turkish Youth Championships 2023"]
[Site "Samsun"]
[Date "2023.05.20"]
[Round "3.10"]
[White "Engin, Onur Cinar"]
[Black "Yilmaz, Oguz"]
[Result "1-0"]
[WhiteElo "1922"]
[BlackElo "1520"]
[Annotator "TA"]
[PlyCount "53"]
[EventDate "2023.05.19"]
[EventType "swiss"]
[EventCountry "TUR"]
[TimeControl "5400+30"]

{[%evp 17,53,0,0,3,1,0,0,0,20,12,71,1,29,27,31,19,33,11,70,62,73,58,60,58,118,124,131,130,216,218,277,245,723,728,651,579,29993,29994]} 1. e4 e5 2. Nf3 Nc6 3. Bc4 Bc5 4. c3 Nf6 5. d4 exd4 6. e5 d5 7. Bb5 Ne4 8. cxd4 Bb6 9. Nc3 O-O 10. Be3 {C54: Giuoco Piano: 4 c3 Nf6, main lines with 5 d4 and 5 d3.} Bg4 11. h3 Bh5 12. Qc2 {The position is equal.} Bg6 {aiming for ...Nxc3.} 13. Qb3 {[%emt 0:11:00]} Nxc3 {[%emt 0:29:00]} (13... Ne7 $11) 14. bxc3 {[%emt 0:00:30] [#]} (14. Bxc6 $16 bxc6 15. Qxc3) 14... a6 $146 {[%emt 0:02:30]} ({Predecessor:} 14... f6 15. exf6 Na5 16. Qd1 c6 17. Bd3 Qxf6 18. Ne5 Bxd3 19. Qxd3 Bc7 20. f4 Qh4+ {0-1 Kollars,D (2611)-Duda,J (2731) Speed Chess Q2 blitz 2022 (10)}) 15. Bxc6 {[%emt 0:09:30]} bxc6 {[%emt 0:00:30]} 16. O-O {[%emt 0:00:30]} Qd7 {[%emt 0:21:30]} 17. Nh4 {[%emt 0:17:30]} Bd3 {[%emt 0:05:30]} (17... Be4 $1 $11) 18. Rfd1 $14 {[%emt 0:00:30]} Bc4 {[%emt 0:06:30] [#]} 19. Qc2 {[%emt 0:01:30]} Rab8 {[%emt 0:07:30]} 20. f4 {[%emt 0:05:30]} Qe7 {[%emt 0:05:30]} (20... f6 $14) 21. Nf5 $16 {[%emt 0:06:30]} Qd7 {[%emt 0:02:30]} 22. Bf2 {[%emt 0:04:30][%cal Be3f2,Bf2h4,Bh4f6][%mdl 32]} a5 {[%emt 0:03:00] [#]} (22... Rbe8 $16 23. Ne3 f6) 23. Bh4 $1 $18 {[%emt 0:05:30][%cal Of5g7] Strongly threatening Nxg7!} c5 {[%emt 0:06:32]} 24. Nxg7 {[%emt 0:14:30][%mdl 64] Black must now prevent Bf6. Decoy} Kxg7 {[%emt 0:02:41]} (24... cxd4 25. Qf5 d3+ 26. Kh2 Qxf5 27. Nxf5 Bc5) 25. Bf6+ {[%emt 0:00:00]} Kg8 {[%emt 0:00:12] [#]} 26. Rd3 $1 {[%emt 0:01:00][%mdl 512] Threatening mate with Rg3+.} Bxd3 {[%emt 0:04:37]} (26... Qf5 27. Rg3+) 27. Qxd3 {[%emt 0:00:30] Weighted Error Value: White=0.08 (flawless) /Black=0.50} 1-0

[Event "Turkish Youth Championships 2023"]
[Site "Samsun"]
[Date "2023.05.21"]
[Round "3.10"]
[White "Koyuncu, Omer Arda"]
[Black "Dogan, Umut Anil"]
[Result "1/2-1/2"]
[ECO "B14"]
[WhiteElo "1694"]
[BlackElo "1857"]
[Annotator "NA RC COMBH"]
[PlyCount "73"]
[EventDate "2023.05.19"]
[EventType "swiss"]
[EventCountry "TUR"]
[SourceTitle "playchess.com"]
[Source "ChessBase"]
[SourceQuality "1"]
[TimeControl "5400+30"]

1. e4 {[%emt 0:01:00]} c6 {[%emt 0:01:00]} 2. d4 {[%emt 0:00:30]} d5 {[%emt 0:00:30]} 3. exd5 {[%emt 0:00:30]} cxd5 {[%emt 0:00:30]} 4. c4 {[%emt 0:00:30]} Nf6 {[%emt 0:00:30]} 5. Nc3 {[%emt 0:00:30]} g6 {[%emt 0:01:30]} 6. Qb3 {[%emt 0:00:00]} Bg7 {[%emt 0:01:30]} 7. cxd5 {[%emt 0:03:00]} O-O {[%emt 0:00:30]} 8. Be2 {[%emt 0:01:30]} Nbd7 {[%emt 0:01:30]} 9. Bf3 {[%emt 0:01:30]} Nb6 {[%emt 0:00:30]} 10. Nge2 {[%emt 0:02:30]} Bf5 {[%emt 0:01:30]} 11. Bf4 {[%emt 0:01:30]} Bd3 {[%emt 0:01:30]} 12. d6 {[%emt 0:18:30]} exd6 {[%emt 0:00:30]} 13. O-O {[%emt 0:00:30]} d5 {[%emt 0:12:30]} 14. Rac1 {[%emt 0:12:30]} Re8 {[%emt 0:07:30]} 15. Rfe1 {[%emt 0:01:30]} Rc8 {[%emt 0:11:30]} 16. a4 {[%emt 0:13:30]} Bc4 {[%emt 0:14:30]} 17. Qd1 {[%emt 0:05:30]} Ne4 {[%emt 0:02:30]} 18. b3 {[%emt 0:14:30]} Nxc3 {[%emt 0:00:30]} 19. Rxc3 {[%emt 0:01:58]} Ba6 {[%emt 0:04:30]} 20. Rxc8 {[%emt 0:00:30]} Nxc8 {[%emt 0:00:30]} 21. Nc3 {[%emt 0:07:15]} Ne7 {[%emt 0:09:30]} 22. Be5 {[%emt 0:06:55]} Nc6 {[%emt 0:08:09]} 23. Bxg7 {[%emt 0:00:33]} Rxe1+ {[%emt 0:00:58]} 24. Qxe1 {[%emt 0:00:04]} Kxg7 {[%emt 0:00:12]} 25. Nxd5 {[%emt 0:00:11]} Bd3 {[%emt 0:00:16]} 26. Qc3 {[%emt 0:04:58]} Bf5 {[%emt 0:01:55]} 27. b4 {[%emt 0:01:11]} a6 {[%emt 0:03:51]} 28. Ne3 {[%emt 0:00:20]} Qf6 {[%emt 0:01:45]} 29. Bxc6 {[%emt 0:00:34]} bxc6 {[%emt 0:00:19]} 30. Nxf5+ {[%emt 0:00:10]} Qxf5 {[%emt 0:00:24]} 31. h3 {[%emt 0:00:10]} Qd5 {[%emt 0:00:32]} 32. Qc5 {[%emt 0:01:39]} Qd7 {[%emt 0:08:41]} 33. f4 {[%emt 0:00:19]} f6 {[%emt 0:00:48]} 34. a5 {[%emt 0:00:37]} Qe6 {[%emt 0:00:38]} 35. Qc3 {[%emt 0:00:50]} Qe4 {[%emt 0:00:30]} 36. g3 {[%emt 0:00:30]} h5 {[%emt 0:00:25]} 37. h4 {[%emt 0:00:00]} 1/2-1/2

[Event "Turkish Youth Championships 2023"]
[Site "Samsun"]
[Date "2023.05.21"]
[Round "3.14"]
[White "Biyiksiz, Ali Batuhan"]
[Black "Tonoglu, Engin Erdem"]
[Result "1-0"]
[ECO "D36"]
[WhiteElo "2107"]
[BlackElo "1404"]
[Annotator "TA"]
[PlyCount "73"]
[EventDate "2023.05.19"]
[EventType "swiss"]
[EventCountry "TUR"]
[SourceTitle "playchess.com"]
[Source "ChessBase"]
[SourceQuality "1"]
[TimeControl "5400+30"]

{[%evp 29,73,20,63,68,110,-41,-47,-109,-71,-75,-25,-102,-75,-169,-160,-173,-171,-156,-129,-124,-112,-127,-29,-23,0,0,-12,-20,633,626,579,578,547,569,547,499,857,850,835,822,725,656,29971,29970,29986,29987]} 1. d4 {[%emt 0:01:00]} d5 {[%emt 0:01:00]} 2. c4 {[%emt 0:00:30]} e6 {[%emt 0:00:30]} 3. Nc3 {[%emt 0:00:30]} Nf6 {[%emt 0:00:30]} 4. cxd5 {[%emt 0:00:30]} exd5 {[%emt 0:00:30]} 5. Bg5 {[%emt 0:00:30]} c6 {[%emt 0:00:30]} 6. e3 {[%emt 0:00:00]} h6 {[%emt 0:01:30]} 7. Bh4 {[%emt 0:00:00]} Be7 {[%emt 0:00:30]} 8. Bd3 {[%emt 0:00:30]} Nbd7 {[%emt 0:00:30]} 9. Qc2 {[%emt 0:00:30]} O-O {[%emt 0:00:30]} 10. Nge2 {[%emt 0:00:30]} Re8 {[%emt 0:01:30]} 11. O-O {[%emt 0:01:30]} Ne4 {[%emt 0:05:30]} 12. Bxe7 {[%emt 0:00:30]} Qxe7 {[%emt 0:00:00]} 13. Rae1 {[%emt 0:00:30]} Ndf6 {[%emt 0:12:00]} 14. f3 {[%emt 0:00:30]} Nxc3 {[%emt 0:00:30]} 15. Nxc3 {[%emt 0:00:30]} c5 {[%emt 0:03:30]} 16. e4 {[%emt 0:14:30] White is more active. D36: Queen's Gambit Declined: Exchange Variation: Main line (5 Bg5 c6 6 Qc2).} cxd4 {[%emt 0:03:30] [#]} 17. Nb5 $146 {[%emt 0:00:00]} (17. exd5 Qxe1 18. Rxe1 Rxe1+ 19. Kf2 Re5 $11) ({White must play} 17. Nxd5 $16 Nxd5 18. exd5) ({Predecessor:} 17. Nxd5 Nxd5 18. exd5 Qxe1 19. Rxe1 Rxe1+ 20. Kf2 Re8 21. Qc7 a6 22. g4 Kf8 23. Qc5+ Kg8 {1-0 Balogh,P (2275)-Istona,M (2218) SVK-chT2A 2122 2021 (2.1)}) 17... dxe4 $15 {[%emt 0:04:30]} 18. fxe4 {[%emt 0:27:00]} (18. Bxe4 $15 Be6 19. Nxd4) 18... Be6 {[%emt 0:04:30]} (18... Qe5 19. Qc7 $15) (18... Ng4 {feels hotter.} 19. Nc7 Qe5 20. g3 Ne3) 19. e5 {[%emt 0:16:30]} Nd5 {[%emt 0:00:30]} ({Black should try} 19... Ng4 $17 {Threatens to win with ...Ne3.} 20. Qd2 (20. Bh7+ $2 Kh8 $19) 20... Red8) 20. Qe2 {[%emt 0:05:30]} (20. Bh7+ $2 Kh8 21. Bd3 Ne3 $19) (20. Qd2 $1 $11 {keeps the balance.}) 20... Ne3 $17 {[%emt 0:19:30]} 21. Nd6 {[%emt 0:03:30]} Nxf1 $19 {[%emt 0:01:30]} 22. Qe4 {[%emt 0:00:30] [#] Intending Qh7+ and mate.} g6 $1 {[%emt 0:05:30] ...Ne3 is the strong threat.} 23. Rxf1 {[%emt 0:03:30]} Red8 {[%emt 0:05:30]} 24. Qxd4 {[%emt 0:08:43]} a6 {[%emt 0:06:30]} 25. h4 {[%emt 0:04:15][%cal Oh4h5] [#]} b5 {[%emt 0:03:05]} ({Don't take} 25... Bxa2 26. h5 b5 27. Kh1 $14 (27. hxg6 Qa7 $17)) (25... h5 $1 $17 26. b3 Rd7) 26. Qf4 $1 $11 {[%emt 0:03:51]} Kg7 {[%emt 0:03:45]} ({Much weaker is} 26... Bxa2 $6 27. Qg3 $17) 27. Qg3 $36 {[%emt 0:02:23][%cal Of1f7][%mdl 2048] Hoping for Rxf7+! White fights for an advantage.} Qa7+ {[%emt 0:01:56]} (27... Bxa2 $2 28. Nf5+ Kf8 29. Nxe7 $18) 28. Kh2 {[%emt 0:00:02] Black must now prevent Rf6. Dancing on a razor blade.} Qd4 $2 {[%emt 0:03:57][%mdl 8192] [#] This move loses the game for Black.} ({But not} 28... Bxa2 29. h5 Rxd6 30. exd6 $18) (28... Rxd6 $11 29. exd6 Qd4) 29. Rxf7+ $3 $18 {[%emt 0:00:54][%mdl 576] Deflection} Bxf7 {[%emt 0:03:21]} 30. Nf5+ {[%emt 0:00:02]} Kh7 {[%emt 0:00:16]} 31. Nxd4 {[%emt 0:00:03]} Rxd4 {[%emt 0:00:00]} 32. h5 {[%emt 0:02:35][%cal Rh5g6]} Rg8 {[%emt 0:01:58]} (32... Rxd3 $142 33. Qxd3 Re8 34. hxg6+ Bxg6 35. Qd7+ Kg8) 33. Qf2 {[%emt 0:01:17]} Rd7 {[%emt 0:01:32]} 34. Qf6 {[%emt 0:01:19] White wants to mate with e6.} Be8 {[%emt 0:03:13]} 35. Bc2 {[%emt 0:00:51]} Rd2 {[%emt 0:01:26]} 36. hxg6+ {[%emt 0:01:54]} Bxg6 {[%emt 0:03:21]} 37. Qf7+ {[%emt 0:00:06][%mdl 64] Deflection. Excellently played by Biyiksiz!   Weighted Error Value: White=0.27 (precise) /Black=0.76} 1-0